fUST/lending_fUST_20250713
["ID","MTS","AMOUNT","RATE_DAILY","PERIOD"]
[371571634,1752358261581,-460.0,0.0002,2]
[371571635,1752358261590,-460.0,0.0002,2]
[371571636,1752358261600,-785.41,0.0002,2]
[371571637,1752358261609,-568.88,0.0002,2]
[371571638,1752358261618,-494.63,0.0002,2]
[371571639,1752358261628,-460.0,0.0002,2]
[371571640,1752358261637,-460.0,0.0002,2]
[371571641,1752358261646,-2095.41,0.0002,2]
[371571642,1752358261656,-460.0,0.0002,2]
[371571643,1752358261665,-460.0,0.0002,2]
[371571644,1752358261675,-460.0,0.0002,2]
[371571645,1752358261685,-746.48,0.0002,2]
[371571646,1752358261694,-460.0,0.0002,2]
[371571647,1752358261703,-1084.72,0.0002,2]
[371571648,1752358261712,-196.23,0.0002,2]
[371571649,1752358261722,-460.0,0.0002,2]
[371571650,1752358261732,-1452.21,0.0002,2]
[371571651,1752358261741,-460.0,0.0002,2]
[371571652,1752358261750,-4048.32,0.0002,2]
[371571653,1752358261759,-888.82,0.0002,2]
[371571654,1752358261769,-538.28,0.0002,2]
[371571655,1752358261778,-460.0,0.0002,2]
[371571656,1752358261788,-460.0,0.0002,2]
[371571657,1752358261797,-460.0,0.0002,2]
[371571658,1752358261807,-460.0,0.0002,2]
[371571659,1752358261817,-1107.74,0.0002,2]
[371571660,1752358261826,-467.32,0.0002,2]
[371571661,1752358261836,-460.0,0.0002,2]
[371571662,1752358261845,-577.85,0.0002,2]
[371571663,1752358261855,-460.0,0.0002,2]
[371571664,1752358261865,-757.63,0.0002,2]
[371571665,1752358261875,-460.0,0.0002,2]
[371571666,1752358261884,-321.86,0.0002,2]
[371571667,1752358261896,-495.29,0.0002,2]
[371571668,1752358261906,-595.14,0.0002,2]
[371571669,1752358261915,-212.56,0.0002,2]
[371571670,1752358261925,-460.0,0.0002,2]
[371571671,1752358261935,-702.1,0.0002,2]
[371571672,1752358261944,-460.0,0.0002,2]
[371571673,1752358261954,-460.0,0.0002,2]
[371571674,1752358261964,-460.0,0.0002,2]
[371571675,1752358261974,-804.39,0.0002,2]
[371571676,1752358261986,-460.0,0.0002,2]
[371571677,1752358261996,-460.0,0.0002,2]
[371571678,1752358262006,-460.0,0.0002,2]
[371571679,1752358262015,-772.88,0.0002,2]
[371571680,1752358262024,-460.0,0.0002,2]
[371571681,1752358262034,-1803.03891771,0.00020003,2]
[371571682,1752358262043,-151.0,0.00020004,2]
[371571683,1752358262053,-1026.35875128,0.00020089,2]
[371571684,1752358262063,-679.9689388,0.0002018,2]
[371571685,1752358262072,-151.0,0.000202,3]
[371571686,1752358262082,-510.91423198,0.00020268,2]
[371571687,1752358262091,-517.5,0.00020272,2]
[371571688,1752358262101,-640.66,0.00020272,2]
[371571689,1752358262110,-642.54,0.00020272,2]
[371571690,1752358262119,-706.14,0.00020272,2]
[371571691,1752358262130,-691.7,0.00020272,2]
[371571692,1752358262139,-864.17,0.00020272,2]
[371571693,1752358262149,-489.15,0.00020272,2]
[371571694,1752358262159,-460.0,0.00020273,2]
[371571695,1752358262168,-505.82,0.00020273,2]
[371571696,1752358262177,-460.0,0.00020273,2]
[371571697,1752358262189,-479.43,0.00020273,2]
[371571698,1752358262208,-761.68,0.00020273,2]
[371571699,1752358262223,-460.0,0.00020273,2]
[371571700,1752358262239,-460.0,0.00020273,2]
[371571701,1752358262258,-841.86,0.00020273,2]
[371571702,1752358262274,-780.97,0.00020273,2]
[371571703,1752358262294,-766.15,0.00020273,2]
[371571704,1752358262311,-489.39,0.00020273,2]
[371571705,1752358262329,-460.0,0.00020273,2]
[371571706,1752358262347,-460.0,0.00020273,2]
[371571707,1752358262362,-785.41,0.00020273,2]
[371571708,1752358262376,-568.88,0.00020273,2]
[371571709,1752358262395,-494.63,0.00020273,2]
[371571710,1752358262413,-460.0,0.00020273,2]
[371571711,1752358262430,-460.0,0.00020273,2]
[371571712,1752358262445,-2095.41,0.00020273,2]
[371571713,1752358262457,-460.0,0.00020273,2]
[371571714,1752358262476,-460.0,0.00020273,2]
[371571715,1752358262491,-215.90444263,0.00020273,2]
[371571716,1752358262506,-746.48,0.00020273,2]
[371571717,1752358262520,-515.72,0.00020273,2]
[371571718,1752358262533,-1084.72,0.00020273,2]
[371571719,1752358262546,-460.0,0.00020273,2]
[371571720,1752358262561,-1452.21,0.00020273,2]
[371571721,1752358262574,-460.0,0.00020273,2]
[371571722,1752358262587,-4048.32,0.00020273,2]
[371571723,1752358262600,-538.28,0.00020273,2]
[371571724,1752358262614,-888.82,0.00020273,2]
[371571725,1752358262627,-460.0,0.00020273,2]
[371571726,1752358262642,-460.0,0.00020273,2]
[371571727,1752358262655,-460.0,0.00020273,2]
[371571728,1752358262667,-460.0,0.00020273,2]
[371571729,1752358262680,-1107.74,0.00020273,2]
[371571730,1752358262694,-467.32,0.00020273,2]
[371571731,1752358262707,-460.0,0.00020273,2]
[371571732,1752358262719,-577.85,0.00020273,2]
[371571733,1752358262732,-388.53486741,0.00020273,2]
[371571734,1752358262745,-757.63,0.00020273,2]
[371571735,1752358262758,-460.0,0.00020273,2]
[371571736,1752358262772,-495.29,0.00020273,2]
[371571737,1752358262785,-595.14,0.00020273,2]
[371571738,1752358262800,-460.0,0.00020273,2]
[371571739,1752358262811,-702.1,0.00020273,2]
[371571740,1752358262821,-460.0,0.00020273,2]
[371571741,1752358262830,-460.0,0.00020273,2]
[371571742,1752358262840,-460.0,0.00020273,2]
[371571743,1752358262850,-804.39,0.00020273,2]
[371571744,1752358262859,-460.0,0.00020273,2]
[371571745,1752358262868,-371.17170027,0.00020273,2]
[371571746,1752358262878,-460.0,0.00020273,2]
[371571747,1752358262887,-772.88,0.00020273,2]
[371571748,1752358262896,-460.0,0.00020273,2]
[371571749,1752358262907,-151.0,0.000203,3]
[371571750,1752358262917,-1803.03891771,0.00020314,3]
[371571751,1752358262928,-517.5,0.00020546,2]
[371571752,1752358262937,-640.66,0.00020546,2]
[371571753,1752358262946,-642.54,0.00020546,2]
[371571754,1752358262956,-706.14,0.00020546,2]
[371571755,1752358262966,-691.7,0.00020546,2]
[371571756,1752358262977,-864.17,0.00020546,2]
[371571757,1752358262986,-489.15,0.00020546,2]
[371571758,1752358262997,-460.0,0.00020547,2]
[371571759,1752358263007,-505.82,0.00020547,2]
[371571760,1752358263017,-460.0,0.00020547,2]
[371571761,1752358263027,-479.43,0.00020547,2]
[371571762,1752358263037,-761.68,0.00020547,2]
[371571763,1752358263047,-460.0,0.00020547,2]
[371571764,1752358263057,-841.86,0.00020547,2]
[371571765,1752358263067,-780.97,0.00020547,2]
[371571766,1752358263077,-766.15,0.00020547,2]
[371571767,1752358263086,-489.39,0.00020547,2]
[371571768,1752358263096,-460.0,0.00020547,2]
[371571769,1752358263106,-460.0,0.00020547,2]
[371571770,1752358263115,-785.41,0.00020547,2]
[371571771,1752358263364,-568.88,0.00020547,2]
[371571772,1752358263382,-494.63,0.00020547,2]
[371571773,1752358263395,-460.0,0.00020547,2]
[371571774,1752358263406,-460.0,0.00020547,2]
[371571775,1752358263416,-2095.41,0.00020547,2]
[371571776,1752358263426,-151.0,0.00020547,2]
[371571777,1752358263436,-460.0,0.00020547,2]
[371571778,1752358263446,-460.0,0.00020547,2]
[371571779,1752358263455,-746.48,0.00020547,2]
[371571780,1752358263465,-1084.72,0.00020547,2]
[371571781,1752358263476,-460.0,0.00020547,2]
[371571782,1752358263486,-1452.21,0.00020547,2]
[371571783,1752358263497,-151.0,0.00020547,2]
[371571784,1752358263507,-4048.32,0.00020547,2]
[371571785,1752358263517,-417.96,0.00020547,2]
[371571786,1752358263527,-151.0,0.00020547,2]
[371571787,1752358263537,-538.28,0.00020547,2]
[371571788,1752358263547,-888.82,0.00020547,2]
[371571789,1752358263557,-460.0,0.00020547,2]
[371571790,1752358263566,-460.0,0.00020547,2]
[371571791,1752358263576,-460.0,0.00020547,2]
[371571792,1752358263586,-151.0,0.00020547,2]
[371571793,1752358263596,-460.0,0.00020547,2]
[371571794,1752358263606,-1107.74,0.00020547,2]
[371571795,1752358263616,-151.0,0.00020547,2]
[371571796,1752358263626,-467.32,0.00020547,2]
[371571797,1752358263636,-460.0,0.00020547,2]
[371571798,1752358263646,-577.85,0.00020547,2]
[371571799,1752358263656,-151.0,0.00020547,2]
[371571800,1752358263667,-151.0,0.00020547,2]
[371571801,1752358263677,-151.0,0.00020547,2]
[371571802,1752358263687,-757.63,0.00020547,2]
[371571803,1752358263696,-460.0,0.00020547,2]
[371571804,1752358263706,-495.29,0.00020547,2]
[371571805,1752358263716,-595.14,0.00020547,2]
[371571806,1752358263726,-221.541213,0.00020547,2]
[371571807,1752358263736,-460.0,0.00020547,2]
[371571808,1752358263745,-702.1,0.00020547,2]
[371571809,1752358263755,-460.0,0.00020547,2]
[371571810,1752358263764,-460.0,0.00020547,2]
[371571811,1752358263774,-460.0,0.00020547,2]
[371571812,1752358263783,-804.39,0.00020547,2]
[371571813,1752358263793,-460.0,0.00020547,2]
[371571814,1752358263802,-151.0,0.00020547,2]
[371571815,1752358263812,-151.0,0.00020547,2]
[371571816,1752358263822,-151.0,0.00020547,2]
[371571817,1752358263832,-460.0,0.00020547,2]
[371571818,1752358263841,-772.88,0.00020547,2]
[371571819,1752358263851,-460.0,0.00020547,2]
[371571820,1752358263860,-2464.43,0.000206,2]
[371571821,1752358263870,-21077.14,0.000206,2]
[371571822,1752358263879,-2154.0,0.00020604,2]
[371571823,1752358263893,-1803.03891771,0.00020624,3]
[371571824,1752358263902,-178.092,0.00020645,2]
[371571825,1752358263912,-622.183,0.00020645,2]
[371571826,1752358263921,-151.0,0.000207,3]
[371571827,1752358263931,-492.9,0.000207,2]
[371571828,1752358263941,-517.5,0.0002082,2]
[371571829,1752358263951,-640.66,0.0002082,2]
[371571830,1752358263961,-642.54,0.0002082,2]
[371571831,1752358263971,-706.14,0.0002082,2]
[371571832,1752358263981,-691.7,0.0002082,2]
[371571833,1752358263990,-864.17,0.0002082,2]
[371571834,1752358264000,-489.15,0.0002082,2]
[371571835,1752358264010,-460.0,0.00020821,2]
[371571836,1752358264019,-505.82,0.00020821,2]
[371571837,1752358264030,-460.0,0.00020821,2]
[371571838,1752358264040,-479.43,0.00020821,2]
[371571839,1752358264050,-761.68,0.00020821,2]
[371571840,1752358264060,-460.0,0.00020821,2]
[371571841,1752358264070,-841.86,0.00020821,2]
[371571842,1752358264080,-780.97,0.00020821,2]
[371571843,1752358264090,-766.15,0.00020821,2]
[371571844,1752358264100,-489.39,0.00020821,2]
[371571845,1752358264109,-460.0,0.00020821,2]
[371571846,1752358264119,-460.0,0.00020821,2]
[371571847,1752358264130,-785.41,0.00020821,2]
[371571848,1752358264139,-568.88,0.00020821,2]
[371571849,1752358264148,-494.63,0.00020821,2]
[371571850,1752358264158,-460.0,0.00020821,2]
[371571851,1752358264167,-228.07591509,0.00020821,2]
[371571852,1752358264176,-2095.41,0.00020821,2]
[371571853,1752358264186,-460.0,0.00020821,2]
[371571854,1752358264195,-460.0,0.00020821,2]
[371571855,1752358264205,-746.48,0.00020821,2]
[371571856,1752358264214,-1084.72,0.00020821,2]
[371571857,1752358264224,-460.0,0.00020821,2]
[371571858,1752358264233,-1452.21,0.00020821,2]
[371571859,1752358264243,-4048.32,0.00020821,2]
[371571860,1752358264252,-538.28,0.00020821,2]
[371571861,1752358264262,-888.82,0.00020821,2]
[371571862,1752358264271,-460.0,0.00020821,2]
[371571863,1752358264282,-460.0,0.00020821,2]
[371571864,1752358264292,-460.0,0.00020821,2]
[371571865,1752358264301,-460.0,0.00020821,2]
[371571866,1752358264310,-1107.74,0.00020821,2]
[371571867,1752358264319,-467.32,0.00020821,2]
[371571868,1752358264329,-460.0,0.00020821,2]
[371571869,1752358264338,-577.85,0.00020821,2]
[371571870,1752358264348,-757.63,0.00020821,2]
[371571871,1752358264358,-460.0,0.00020821,2]
[371571872,1752358264367,-495.29,0.00020821,2]
[371571873,1752358264377,-595.14,0.00020821,2]
[371571874,1752358264387,-460.0,0.00020821,2]
[371571875,1752358264397,-702.1,0.00020821,2]
[371571876,1752358264407,-460.0,0.00020821,2]
[371571877,1752358264417,-460.0,0.00020821,2]
[371571878,1752358264427,-804.39,0.00020821,2]
[371571879,1752358264437,-460.0,0.00020821,2]
[371571880,1752358264447,-460.0,0.00020821,2]
[371571881,1752358264457,-772.88,0.00020821,2]
[371571882,1752358264466,-460.0,0.00020821,2]
[371571883,1752358264476,-1803.03891771,0.00020934,4]
[371571884,1752358264486,-517.5,0.00021094,2]
[371571885,1752358264495,-640.66,0.00021094,2]
[371571886,1752358264505,-642.54,0.00021094,2]
[371571887,1752358264515,-706.14,0.00021094,2]
[371571888,1752358264524,-691.7,0.00021094,2]
[371571889,1752358264534,-864.17,0.00021094,2]
[371571890,1752358264544,-489.15,0.00021094,2]
[371571891,1752358264554,-460.0,0.00021095,2]
[371571892,1752358264563,-505.82,0.00021095,2]
[371571893,1752358264573,-460.0,0.00021095,2]
[371571894,1752358264582,-479.43,0.00021095,2]
[371571895,1752358264591,-761.68,0.00021095,2]
[371571896,1752358264600,-460.0,0.00021095,2]
[371571897,1752358264610,-841.86,0.00021095,2]
[371571898,1752358264620,-780.97,0.00021095,2]
[371571899,1752358264629,-766.15,0.00021095,2]
[371571900,1752358264639,-489.39,0.00021095,2]
[371571901,1752358264649,-460.0,0.00021095,2]
[371571902,1752358264658,-365.33,0.00021095,2]
[371571903,1752358264668,-785.41,0.00021095,2]
[371571904,1752358264678,-568.88,0.00021095,2]
[371571905,1752358264688,-494.63,0.00021095,2]
[371571906,1752358264698,-460.0,0.00021095,2]
[371571907,1752358264708,-2095.41,0.00021095,2]
[371571908,1752358264717,-460.0,0.00021095,2]
[371571909,1752358264727,-460.0,0.00021095,2]
[371571910,1752358264737,-746.48,0.00021095,2]
[371571911,1752358264747,-1084.72,0.00021095,2]
[371571912,1752358264756,-173.17,0.00021095,2]
[371571913,1752358264767,-1452.21,0.00021095,2]
[371571914,1752358264776,-4048.32,0.00021095,2]
[371571915,1752358264786,-538.28,0.00021095,2]
[371571916,1752358264796,-888.82,0.00021095,2]
[371571917,1752358264806,-460.0,0.00021095,2]
[371571918,1752358264815,-460.0,0.00021095,2]
[371571919,1752358264825,-427.03,0.00021095,2]
[371571920,1752358264835,-208.75,0.00021095,2]
[371571921,1752358264844,-1107.74,0.00021095,2]
[371571922,1752358264854,-467.32,0.00021095,2]
[371571923,1752358264863,-577.85,0.00021095,2]
[371571924,1752358264873,-757.63,0.00021095,2]
[371571925,1752358264883,-460.0,0.00021095,2]
[371571926,1752358264895,-495.29,0.00021095,2]
[371571927,1752358264905,-595.14,0.00021095,2]
[371571928,1752358264915,-702.1,0.00021095,2]
[371571929,1752358264925,-460.0,0.00021095,2]
[371571930,1752358264936,-804.39,0.00021095,2]
[371571931,1752358264946,-567.02567553,0.00021095,2]
[371571932,1752358264957,-460.0,0.00021095,2]
[371571933,1752358264968,-772.88,0.00021095,2]
[371571934,1752358264979,-460.0,0.00021095,2]
[371571935,1752358264989,-151.0,0.000211,4]
[371571936,1752358264998,-215.0738,0.00021195,2]
[371571937,1752358265008,-1803.03891771,0.00021245,4]
[371571938,1752358265018,-151.0,0.00021273,2]
[371571939,1752358265027,-647.0,0.00021273,2]
[371571940,1752358265037,-1026.35875128,0.0002134,2]
[371571941,1752358265046,-517.5,0.00021368,2]
[371571942,1752358265055,-640.66,0.00021368,2]
[371571943,1752358265065,-642.54,0.00021368,2]
[371571944,1752358265074,-691.7,0.00021368,2]
[371571945,1752358265083,-706.14,0.00021368,2]
[371571946,1752358265093,-864.17,0.00021368,2]
[371571947,1752358265103,-489.15,0.00021368,2]
[371571948,1752358265112,-460.0,0.00021369,2]
[371571949,1752358265122,-505.82,0.00021369,2]
[371571950,1752358265130,-460.0,0.00021369,2]
[371571951,1752358265139,-479.43,0.00021369,2]
[371571952,1752358265148,-761.68,0.00021369,2]
[371571953,1752358265158,-460.0,0.00021369,2]
[371571954,1752358265167,-841.86,0.00021369,2]
[371571955,1752358265176,-780.97,0.00021369,2]
[371571956,1752358265186,-766.15,0.00021369,2]
[371571957,1752358265196,-489.39,0.00021369,2]
[371571958,1752358265205,-460.0,0.00021369,2]
[371571959,1752358265214,-785.41,0.00021369,2]
[371571960,1752358265224,-568.88,0.00021369,2]
[371571961,1752358265233,-494.63,0.00021369,2]
[371571962,1752358265242,-460.0,0.00021369,2]
[371571963,1752358265252,-2095.41,0.00021369,2]
[371571964,1752358265264,-460.0,0.00021369,2]
[371571965,1752358265274,-151.0,0.00021369,2]
[371571966,1752358265284,-533.77676561,0.00021369,2]
[371571967,1752358265294,-396.455513,0.00021369,2]
[371571968,1752358265304,-396.455513,0.00021369,2]
[371571969,1752358265313,-746.48,0.00021369,2]
[371571970,1752358265323,-1084.72,0.00021369,2]
[371571971,1752358265334,-151.0,0.00021369,2]
[371571972,1752358265344,-151.0,0.00021369,2]
[371571973,1752358265354,-1452.21,0.00021369,2]
[371571974,1752358265363,-4048.32,0.00021369,2]
[371571975,1752358265373,-538.28,0.00021369,2]
[371571976,1752358265383,-888.82,0.00021369,2]
[371571977,1752358265393,-460.0,0.00021369,2]
[371571978,1752358265403,-460.0,0.00021369,2]
[371571979,1752358265412,-1107.74,0.00021369,2]
[371571980,1752358265423,-467.32,0.00021369,2]
[371571981,1752358265432,-577.85,0.00021369,2]
[371571982,1752358265442,-757.63,0.00021369,2]
[371571983,1752358265452,-460.0,0.00021369,2]
[371571984,1752358265462,-495.29,0.00021369,2]
[371571985,1752358265472,-595.14,0.00021369,2]
[371571986,1752358265482,-151.0,0.00021369,2]
[371571987,1752358265492,-702.1,0.00021369,2]
[371571988,1752358265502,-460.0,0.00021369,2]
[371571989,1752358265513,-804.39,0.00021369,2]
[371571990,1752358265522,-151.0,0.00021369,2]
[371571991,1752358265532,-460.0,0.00021369,2]
[371571992,1752358265542,-772.88,0.00021369,2]
[371571993,1752358265551,-460.0,0.00021369,2]
[371571994,1752358265562,-151.0,0.00021369,2]
[371571995,1752358265572,-500.0,0.00021456,2]
[371571996,1752358265582,-500.0,0.00021456,2]
[371571997,1752358265591,-500.0,0.00021456,2]
[371571998,1752358265601,-1803.03891771,0.00021555,5]
[371571999,1752358265611,-517.5,0.00021642,2]
[371572000,1752358265621,-640.66,0.00021642,2]
[371572001,1752358265630,-642.54,0.00021642,2]
[371572002,1752358265640,-691.7,0.00021642,2]
[371572003,1752358265650,-706.14,0.00021642,2]
[371572004,1752358265659,-864.17,0.00021642,2]
[371572005,1752358265671,-489.15,0.00021642,2]
[371572006,1752358265681,-460.0,0.00021643,2]
[371572007,1752358265692,-505.82,0.00021643,2]
[371572008,1752358265703,-460.0,0.00021643,2]
[371572009,1752358265713,-479.43,0.00021643,2]
[371572010,1752358265724,-761.68,0.00021643,2]
[371572011,1752358265734,-460.0,0.00021643,2]
[371572012,1752358265745,-841.86,0.00021643,2]
[371572013,1752358265756,-780.97,0.00021643,2]
[371572014,1752358265767,-151.0,0.00021643,2]
[371572015,1752358265776,-766.15,0.00021643,2]
[371572016,1752358265787,-151.0,0.00021643,2]
[371572017,1752358265797,-151.0,0.00021643,2]
[371572018,1752358265806,-489.39,0.00021643,2]
[371572019,1752358265816,-151.0,0.00021643,2]
[371572020,1752358265825,-460.0,0.00021643,2]
[371572021,1752358265835,-151.0,0.00021643,2]
[371572022,1752358265844,-151.0,0.00021643,2]
[371572023,1752358265854,-785.41,0.00021643,2]
[371572024,1752358265863,-568.88,0.00021643,2]
[371572025,1752358265873,-494.63,0.00021643,2]
[371572026,1752358265882,-460.0,0.00021643,2]
[371572027,1752358265894,-2095.41,0.00021643,2]
[371572028,1752358265904,-518.66,0.00021643,2]
[371572029,1752358265914,-667.579981,0.00021643,2]
[371572030,1752358265923,-667.579981,0.00021643,2]
[371572031,1752358265934,-746.48,0.00021643,2]
[371572032,1752358265943,-1084.72,0.00021643,2]
[371572033,1752358265953,-1452.21,0.00021643,2]
[371572034,1752358265964,-4048.32,0.00021643,2]
[371572035,1752358265974,-888.82,0.00021643,2]
[371572036,1752358265984,-538.28,0.00021643,2]
[371572037,1752358265994,-460.0,0.00021643,2]
[371572038,1752358266004,-460.0,0.00021643,2]
[371572039,1752358266014,-1107.74,0.00021643,2]
[371572040,1752358266024,-467.32,0.00021643,2]
[371572041,1752358266034,-577.85,0.00021643,2]
[371572042,1752358266044,-757.63,0.00021643,2]
[371572043,1752358266054,-460.0,0.00021643,2]
[371572044,1752358266064,-495.29,0.00021643,2]
[371572045,1752358266073,-595.14,0.00021643,2]
[371572046,1752358266083,-702.1,0.00021643,2]
[371572047,1752358266092,-460.0,0.00021643,2]
[371572048,1752358266102,-804.39,0.00021643,2]
[371572049,1752358266112,-460.0,0.00021643,2]
[371572050,1752358266122,-772.88,0.00021643,2]
[371572051,1752358266131,-460.0,0.00021643,2]
[371572052,1752358266141,-550.27168689,0.00021817,2]
[371572053,1752358266151,-1803.03891771,0.00021866,6]
[371572054,1752358266161,-151.0,0.000219,3]
[371572055,1752358266171,-517.5,0.00021916,2]
[371572056,1752358266180,-640.66,0.00021916,2]
[371572057,1752358266191,-642.54,0.00021916,2]
[371572058,1752358266202,-691.7,0.00021916,2]
[371572059,1752358266213,-706.14,0.00021916,2]
[371572060,1752358266224,-864.17,0.00021916,2]
[371572061,1752358266235,-489.15,0.00021916,2]
[371572062,1752358266244,-503.66949743,0.00021917,2]
[371572063,1752358266255,-505.82,0.00021917,2]
[371572064,1752358266265,-460.0,0.00021917,2]
[371572065,1752358266275,-479.43,0.00021917,2]
[371572066,1752358266285,-761.68,0.00021917,2]
[371572067,1752358266296,-460.0,0.00021917,2]
[371572068,1752358266306,-841.86,0.00021917,2]
[371572069,1752358266317,-780.97,0.00021917,2]
[371572070,1752358266326,-151.0,0.00021917,2]
[371572071,1752358266337,-151.0,0.00021917,2]
[371572072,1752358266347,-151.0,0.00021917,2]
[371572073,1752358266357,-151.0,0.00021917,2]
[371572074,1752358266367,-766.15,0.00021917,2]
[371572075,1752358266376,-489.39,0.00021917,2]
[371572076,1752358266386,-449.04,0.00021917,2]
[371572077,1752358266396,-151.0,0.00021917,2]
[371572078,1752358266405,-785.41,0.00021917,2]
[371572079,1752358266414,-151.0,0.00021917,2]
[371572080,1752358266424,-568.88,0.00021917,2]
[371572081,1752358266434,-494.63,0.00021917,2]
[371572082,1752358266444,-460.0,0.00021917,2]
[371572083,1752358266454,-2095.41,0.00021917,2]
[371572084,1752358266463,-151.0,0.00021917,2]
[371572085,1752358266473,-746.48,0.00021917,2]
[371572086,1752358266484,-1084.72,0.00021917,2]
[371572087,1752358266494,-1452.21,0.00021917,2]
[371572088,1752358266504,-4048.32,0.00021917,2]
[371572089,1752358266625,-888.82,0.00021917,2]
[371572090,1752358266635,-538.28,0.00021917,2]
[371572091,1752358266645,-460.0,0.00021917,2]
[371572092,1752358266655,-460.0,0.00021917,2]
[371572093,1752358266664,-1107.74,0.00021917,2]
[371572094,1752358266674,-151.0,0.00021917,2]
[371572095,1752358266684,-467.32,0.00021917,2]
[371572096,1752358266694,-577.85,0.00021917,2]
[371572097,1752358266704,-757.63,0.00021917,2]
[371572098,1752358266714,-460.0,0.00021917,2]
[371572099,1752358266723,-495.29,0.00021917,2]
[371572100,1752358266734,-595.14,0.00021917,2]
[371572101,1752358266744,-702.1,0.00021917,2]
[371572102,1752358266753,-460.0,0.00021917,2]
[371572103,1752358266763,-804.39,0.00021917,2]
[371572104,1752358266772,-514.62,0.00021917,2]
[371572105,1752358266783,-772.88,0.00021917,2]
[371572106,1752358266793,-160.75,0.00021917,2]
[371572107,1752358266803,-185.0,0.00021918,6]
[371572108,1752358266812,-2464.43,0.00022,7]
[371572109,1752358266823,-1000.0,0.00022004,2]
[371572110,1752358266832,-500.8436141,0.00022004,2]
[371572111,1752358266842,-492.9,0.000221,7]
[371572112,1752358266854,-21077.14,0.000221,2]
[371572113,1752358266864,-151.0,0.000221,7]
[371572114,1752358266876,-1803.03891771,0.00022176,6]
[371572115,1752358266887,-550.27168686,0.00022181,2]
[371572116,1752358266898,-517.5,0.0002219,2]
[371572117,1752358266909,-640.66,0.0002219,2]
[371572118,1752358266919,-642.54,0.0002219,2]
[371572119,1752358266930,-691.7,0.0002219,2]
[371572120,1752358266940,-706.14,0.0002219,2]
[371572121,1752358266951,-864.17,0.0002219,2]
[371572122,1752358266960,-489.15,0.0002219,2]
[371572123,1752358266969,-505.82,0.00022191,2]
[371572124,1752358266981,-202.24,0.00022191,2]
[371572125,1752358266991,-479.43,0.00022191,2]
[371572126,1752358267001,-761.68,0.00022191,2]
[371572127,1752358267010,-460.0,0.00022191,2]
[371572128,1752358267020,-841.86,0.00022191,2]
[371572129,1752358267030,-780.97,0.00022191,2]
[371572130,1752358267040,-766.15,0.00022191,2]
[371572131,1752358267053,-489.39,0.00022191,2]
[371572132,1752358267063,-785.41,0.00022191,2]
[371572133,1752358267071,-568.88,0.00022191,2]